fUST/lending_fUST_20240423
["ID","MTS","AMOUNT","RATE_DAILY","PERIOD"]
[323305642,1713883365738,-500.0,0.00019452,2]
[323305643,1713883365771,-1516.96,0.00019452,2]
[323305644,1713883365807,-545.1,0.00019452,2]
[323305645,1713883365842,-883.23,0.00019452,2]
[323305646,1713883365877,-500.0,0.00019452,2]
[323305647,1713883365910,-500.0,0.00019452,2]
[323305648,1713883365943,-500.0,0.00019452,2]
[323305649,1713883365978,-500.0,0.00019452,2]
[323305650,1713883366013,-500.0,0.00019452,2]
[323305651,1713883366047,-500.0,0.00019452,2]
[323305652,1713883366083,-1089.19,0.00019452,2]
[323305653,1713883366116,-533.61,0.00019452,2]
[323305654,1713883366149,-696.5,0.00019452,2]
[323305655,1713883366183,-3295.9,0.00019452,2]
[323305656,1713883366219,-500.0,0.00019452,2]
[323305657,1713883366255,-557.08,0.00019452,2]
[323305658,1713883366392,-1718.01,0.00019452,2]
[323305659,1713883366429,-5798.37,0.00019452,2]
[323305660,1713883366463,-500.0,0.00019452,2]
[323305661,1713883366497,-500.0,0.00019452,2]
[323305662,1713883366550,-1083.71,0.00019452,2]
[323305663,1713883366593,-500.0,0.00019452,2]
[323305664,1713883366633,-543.01,0.00019452,2]
[323305665,1713883366671,-500.0,0.00019452,2]
[323305666,1713883366709,-500.0,0.00019452,2]
[323305667,1713883366747,-500.0,0.00019452,2]
[323305668,1713883366783,-1412.41,0.00019452,2]
[323305669,1713883366821,-500.0,0.00019452,2]
[323305670,1713883366857,-500.0,0.00019452,2]
[323305671,1713883366893,-500.0,0.00019452,2]
[323305672,1713883366929,-1905.74,0.00019452,2]
[323305673,1713883366964,-500.0,0.00019452,2]
[323305674,1713883366999,-500.0,0.00019452,2]
[323305675,1713883367034,-1692.28,0.00019452,2]
[323305676,1713883367069,-500.0,0.00019452,2]
[323305677,1713883367103,-500.0,0.00019452,2]
[323305678,1713883367137,-500.0,0.00019452,2]
[323305679,1713883367173,-13416.69,0.00019452,2]
[323305680,1713883367208,-500.0,0.00019452,2]
[323305681,1713883367244,-500.0,0.00019452,2]
[323305682,1713883367279,-648.13,0.00019452,2]
[323305683,1713883367313,-500.0,0.00019452,2]
[323305684,1713883367346,-500.0,0.00019452,2]
[323305685,1713883367379,-500.0,0.00019452,2]
[323305686,1713883367413,-10921.98,0.00019452,2]
[323305687,1713883367447,-500.0,0.00019452,2]
[323305688,1713883367485,-2188.86,0.00019452,2]
[323305689,1713883367518,-353.13838201,0.00019452,2]
[323305690,1713883367557,-500.0,0.00019452,2]
[323305691,1713883367593,-500.0,0.00019452,2]
[323305692,1713883367627,-500.0,0.00019452,2]
[323305693,1713883367662,-23354.87,0.00019452,2]
[323305694,1713883367697,-386.63312936,0.00019452,2]
[323305695,1713883367731,-500.0,0.00019452,2]
[323305696,1713883367765,-1767.98,0.00019452,2]
[323305697,1713883367799,-3930.21,0.00019452,2]
[323305698,1713883367835,-633.41,0.00019452,2]
[323305699,1713883367982,-1097.28,0.00019452,2]
[323305700,1713883368017,-500.0,0.00019452,2]
[323305701,1713883368050,-500.0,0.00019452,2]
[323305702,1713883368085,-3477.84,0.00019452,2]
[323305703,1713883368119,-500.0,0.00019452,2]
[323305704,1713883368153,-748.03,0.00019452,2]
[323305705,1713883368186,-538.21,0.00019452,2]
[323305706,1713883368220,-500.0,0.00019452,2]
[323305707,1713883368253,-500.0,0.00019452,2]
[323305708,1713883368289,-500.0,0.00019452,2]
[323305709,1713883368323,-500.0,0.00019452,2]
[323305710,1713883368358,-500.0,0.00019452,2]
[323305711,1713883368392,-6079.78,0.00019452,2]
[323305712,1713883368427,-5968.03,0.00019452,2]
[323305713,1713883368460,-500.0,0.00019452,2]
[323305714,1713883368495,-500.0,0.00019452,2]
[323305715,1713883368528,-500.0,0.00019452,2]
[323305716,1713883368563,-5848.16,0.00019452,2]
[323305717,1713883368598,-500.0,0.00019452,2]
[323305718,1713883368631,-500.0,0.00019452,2]
[323305719,1713883368665,-500.0,0.00019452,2]
[323305720,1713883368698,-500.0,0.00019452,2]
[323305721,1713883368733,-500.0,0.00019452,2]
[323305722,1713883368768,-527.5,0.00019452,2]
[323305723,1713883368803,-1320.99,0.00019452,2]
[323305724,1713883368837,-9919.61,0.00019452,2]
[323305725,1713883368872,-1097.94,0.00019452,2]
[323305726,1713883368908,-673.0,0.00019452,2]
[323305727,1713883368945,-1093.81,0.00019452,2]
[323305728,1713883368978,-875.51,0.00019452,2]
[323305729,1713883369012,-500.0,0.00019452,2]
[323305730,1713883369045,-929.33,0.00019452,2]
[323305731,1713883369078,-843.74,0.00019452,2]
[323305732,1713883369111,-493.43862535,0.00019452,2]
[323305733,1713883369146,-500.0,0.00019452,2]
[323305734,1713883369179,-500.0,0.00019452,2]
[323305735,1713883369213,-500.0,0.00019452,2]
[323305736,1713883369246,-226.66783734,0.00019452,2]
[323305737,1713883369280,-500.0,0.00019452,2]
[323305738,1713883369315,-500.0,0.00019452,2]
[323305739,1713883369348,-1183.75,0.00019452,2]
[323305740,1713883369476,-500.0,0.00019452,2]
[323305741,1713883369515,-709.85,0.00019452,2]
[323305742,1713883369549,-4081.55,0.00019452,2]
[323305743,1713883369584,-500.0,0.00019452,2]
[323305744,1713883369619,-823.0,0.00019603,2]
[323305745,1713883369653,-500.0,0.00019726,2]
[323305746,1713883369687,-500.0,0.00019726,2]
[323305747,1713883369721,-500.0,0.00019726,2]
[323305748,1713883369755,-701.78,0.00019726,2]
[323305749,1713883369789,-500.0,0.00019726,2]
[323305750,1713883369823,-500.0,0.00019726,2]
[323305751,1713883369858,-378.34572552,0.00019726,2]
[323305752,1713883369893,-500.0,0.00019726,2]
[323305753,1713883369927,-500.0,0.00019726,2]
[323305754,1713883369960,-540.7,0.00019726,2]
[323305755,1713883369995,-1237.76,0.00019726,2]
[323305756,1713883370028,-500.0,0.00019726,2]
[323305757,1713883370063,-500.0,0.00019726,2]
[323305758,1713883370097,-500.0,0.00019726,2]
[323305759,1713883370131,-500.0,0.00019726,2]
[323305760,1713883370165,-500.0,0.00019726,2]
[323305761,1713883370202,-500.0,0.00019726,2]
[323305762,1713883370236,-500.0,0.00019726,2]
[323305763,1713883370271,-1041.4,0.00019726,2]
[323305764,1713883370305,-500.0,0.00019726,2]
[323305765,1713883370340,-500.0,0.00019726,2]
[323305766,1713883370374,-500.0,0.00019726,2]
[323305767,1713883370410,-357.82857994,0.00019726,2]
[323305768,1713883370444,-500.0,0.00019726,2]
[323305769,1713883370479,-660.79,0.00019726,2]
[323305770,1713883370514,-500.0,0.00019726,2]
[323305771,1713883370550,-500.0,0.00019726,2]
[323305772,1713883370586,-500.0,0.00019726,2]
[323305773,1713883370620,-500.0,0.00019726,2]
[323305774,1713883370655,-588.5,0.00019726,2]
[323305775,1713883370690,-500.0,0.00019726,2]
[323305776,1713883370725,-1917.73,0.00019726,2]
[323305777,1713883370760,-583.11,0.00019726,2]
[323305778,1713883370795,-500.0,0.00019726,2]
[323305779,1713883370832,-1116.31,0.00019726,2]
[323305780,1713883370869,-1453.98,0.00019726,2]
[323305781,1713883370987,-1314.89,0.00019726,2]
[323305782,1713883371050,-500.0,0.00019726,2]
[323305783,1713883371087,-696.98,0.00019726,2]
[323305784,1713883371124,-1520.65,0.00019726,2]
[323305785,1713883371163,-500.0,0.00019726,2]
[323305786,1713883371202,-1053.48,0.00019726,2]
[323305787,1713883371240,-500.0,0.00019726,2]
[323305788,1713883371278,-500.0,0.00019726,2]
[323305789,1713883371316,-760.8,0.00019726,2]
[323305790,1713883371384,-500.0,0.00019726,2]
[323305791,1713883371419,-500.0,0.00019726,2]
[323305792,1713883371455,-864.62,0.00019726,2]
[323305793,1713883371492,-500.0,0.00019726,2]
[323305794,1713883371528,-1523.55,0.00019726,2]
[323305795,1713883371564,-500.0,0.00019726,2]
[323305796,1713883371602,-1922.72,0.00019726,2]
[323305797,1713883371639,-500.0,0.00019726,2]
[323305798,1713883371673,-616.32759555,0.00019726,2]
[323305799,1713883371707,-500.0,0.00019726,2]
[323305800,1713883371741,-500.0,0.00019726,2]
[323305801,1713883371774,-699.55,0.00019726,2]
[323305802,1713883371809,-500.0,0.00019726,2]
[323305803,1713883371847,-500.0,0.00019726,2]
[323305804,1713883371881,-500.0,0.00019726,2]
[323305805,1713883371917,-987.35,0.00019726,2]
[323305806,1713883371950,-264.88888302,0.00019726,2]
[323305807,1713883371984,-500.0,0.00019726,2]
[323305808,1713883372018,-500.0,0.00019726,2]
[323305809,1713883372051,-500.0,0.00019726,2]
[323305810,1713883372087,-1516.96,0.00019726,2]
[323305811,1713883372124,-545.1,0.00019726,2]
[323305812,1713883372157,-514.598349,0.00019726,2]
[323305813,1713883372193,-514.598349,0.00019726,2]
[323305814,1713883372232,-883.23,0.00019726,2]
[323305815,1713883372268,-500.0,0.00019726,2]
[323305816,1713883372304,-500.0,0.00019726,2]
[323305817,1713883372342,-500.0,0.00019726,2]
[323305818,1713883372375,-281.256493,0.00019726,2]
[323305819,1713883372411,-500.0,0.00019726,2]
[323305820,1713883372445,-500.0,0.00019726,2]
[323305821,1713883372480,-500.0,0.00019726,2]
[323305822,1713883372515,-1089.19,0.00019726,2]
[323305823,1713883372655,-533.61,0.00019726,2]
[323305824,1713883372690,-696.5,0.00019726,2]
[323305825,1713883372726,-3295.9,0.00019726,2]
[323305826,1713883372761,-500.0,0.00019726,2]
[323305827,1713883372794,-557.08,0.00019726,2]
[323305828,1713883372827,-1718.01,0.00019726,2]
[323305829,1713883372863,-5798.37,0.00019726,2]
[323305830,1713883372899,-500.0,0.00019726,2]
[323305831,1713883372935,-500.0,0.00019726,2]
[323305832,1713883372969,-1083.71,0.00019726,2]
[323305833,1713883373009,-500.0,0.00019726,2]
[323305834,1713883373045,-543.01,0.00019726,2]
[323305835,1713883373080,-500.0,0.00019726,2]
[323305836,1713883373117,-500.0,0.00019726,2]
[323305837,1713883373150,-500.0,0.00019726,2]
[323305838,1713883373184,-1412.41,0.00019726,2]
[323305839,1713883373221,-500.0,0.00019726,2]
[323305840,1713883373256,-530.37415491,0.00019726,2]
[323305841,1713883373292,-500.0,0.00019726,2]
[323305842,1713883373329,-1905.74,0.00019726,2]
[323305843,1713883373363,-500.0,0.00019726,2]
[323305844,1713883373398,-500.0,0.00019726,2]
[323305845,1713883373432,-1692.28,0.00019726,2]
[323305846,1713883373466,-500.0,0.00019726,2]
[323305847,1713883373501,-500.0,0.00019726,2]
[323305848,1713883373535,-500.0,0.00019726,2]
[323305849,1713883373574,-13416.69,0.00019726,2]
[323305850,1713883373607,-500.0,0.00019726,2]
[323305851,1713883373640,-500.0,0.00019726,2]
[323305852,1713883373674,-648.13,0.00019726,2]
[323305853,1713883373709,-500.0,0.00019726,2]
[323305854,1713883373743,-500.0,0.00019726,2]
[323305855,1713883373775,-151.0,0.00019726,2]
[323305856,1713883373811,-500.0,0.00019726,2]
[323305857,1713883373848,-5253.79302386,0.00019726,2]
[323305859,1713883639129,-272.57129579,0.00018248,2]
[323305860,1713883639151,-3384.66457059,0.00018248,2]
[323305861,1713883639172,-300.0,0.00018249,2]
[323305862,1713883639192,-300.0,0.00018249,2]
[323305863,1713883639212,-188.81822926,0.00018249,2]
[323305864,1713883639232,-628.221272,0.00018249,2]
[323305865,1713883639252,-918.44398606,0.0001825,2]
[323305866,1713883639273,-200.92339208,0.0001825,2]
[323305867,1713883639293,-2099.47208497,0.00018348,2]
[323305868,1713883639314,-200.0,0.00018349,2]
[323305869,1713883639334,-156.3171088,0.00018349,2]
[323305870,1713883639354,-1675.82446385,0.00018349,2]
[323305871,1713883639374,-158.98533641,0.00018349,2]
[323305872,1713883639397,-172.3190033,0.00018349,2]
[323305873,1713883639417,-459.70738052,0.00018349,2]
[323305874,1713883639437,-155.02148443,0.00018349,2]
[323305875,1713883639457,-199.80945329,0.00018349,2]
[323305876,1713883639479,-52782.40619781,0.0001835,2]
[323305877,1713883639500,-24900.0,0.00018351,2]
[323305878,1713883639522,-2464.1631054,0.000189,2]
[323305879,1713883639542,-189.19295912,0.0001897,2]
[323305880,1713883639561,-637.9252794,0.00019,2]
[323305881,1713883639581,-350.25,0.00019168,3]
[323305882,1713883639601,-462.96,0.00019168,3]
[323305883,1713883639621,-231.48,0.00019168,3]
[323305884,1713883639640,-694.47,0.00019168,3]
[323305885,1713883639660,-154.84515175,0.00019177,2]
[323305886,1713883639680,-312.03119251,0.00019177,2]
[323305887,1713883639700,-500.0,0.00019178,2]
[323305888,1713883639719,-500.0,0.00019178,2]
[323305889,1713883639739,-500.0,0.00019178,2]
[323305890,1713883639761,-500.0,0.00019178,2]
[323305891,1713883639781,-500.78952841,0.00019178,2]
[323305892,1713883639802,-500.0,0.00019178,2]
[323305893,1713883639822,-500.0,0.00019178,2]
[323305894,1713883639842,-500.0,0.00019178,2]
[323305895,1713883639864,-500.0,0.00019178,2]
[323305896,1713883639884,-500.0,0.00019178,2]
[323305897,1713883639905,-1620.65,0.00019178,2]
[323305898,1713883639926,-500.0,0.00019178,2]
[323305899,1713883639959,-835.58,0.00019178,2]
[323305900,1713883639979,-500.0,0.00019178,2]
[323305901,1713883640000,-580.63,0.00019178,2]
[323305902,1713883640024,-500.0,0.00019178,2]
[323305903,1713883640044,-1667.52,0.00019178,2]
[323305904,1713883640064,-500.0,0.00019178,2]
[323305905,1713883640084,-500.0,0.00019178,2]
[323305906,1713883640104,-500.0,0.00019178,2]
[323305907,1713883640123,-500.0,0.00019178,2]
[323305908,1713883640144,-500.0,0.00019178,2]
[323305909,1713883640163,-500.0,0.00019178,2]
[323305910,1713883640184,-500.0,0.00019178,2]
[323305911,1713883640204,-500.0,0.00019178,2]
[323305912,1713883640225,-500.0,0.00019178,2]
[323305913,1713883640245,-500.0,0.00019178,2]
[323305914,1713883640272,-500.0,0.00019178,2]
[323305915,1713883640295,-500.0,0.00019178,2]
[323305916,1713883640318,-21408.63,0.00019178,2]
[323305917,1713883640340,-500.0,0.00019178,2]
[323305918,1713883640362,-500.08025782,0.00019178,2]
[323305919,1713883640383,-500.0,0.00019178,2]
[323305920,1713883640406,-500.0,0.00019178,2]
[323305921,1713883640426,-1005.84,0.00019178,2]
[323305922,1713883640447,-943.99,0.00019178,2]
[323305923,1713883640468,-3602.7,0.00019178,2]
[323305924,1713883640488,-500.0,0.00019178,2]
[323305925,1713883640508,-500.0,0.00019178,2]
[323305926,1713883640532,-3188.02,0.00019178,2]
[323305927,1713883640552,-500.0,0.00019178,2]
[323305928,1713883640571,-500.0,0.00019178,2]
[323305929,1713883640592,-500.0,0.00019178,2]
[323305930,1713883640612,-685.7,0.00019178,2]
[323305931,1713883640632,-500.0,0.00019178,2]
[323305932,1713883640653,-500.0,0.00019178,2]
[323305933,1713883640673,-500.0,0.00019178,2]
[323305934,1713883640694,-500.0,0.00019178,2]
[323305935,1713883640814,-531.06,0.00019178,2]
[323305936,1713883640838,-599.02,0.00019178,2]
[323305937,1713883640859,-1731.85,0.00019178,2]
[323305938,1713883640879,-500.0,0.00019178,2]
[323305939,1713883640900,-5573.13,0.00019178,2]
[323305940,1713883640920,-500.0,0.00019178,2]
[323305941,1713883640941,-500.0,0.00019178,2]
[323305942,1713883640961,-500.0,0.00019178,2]
[323305943,1713883640981,-500.0,0.00019178,2]
[323305944,1713883641000,-630.75,0.00019178,2]
[323305945,1713883641023,-5360.81,0.00019178,2]
[323305946,1713883641042,-500.0,0.00019178,2]
[323305947,1713883641063,-500.0,0.00019178,2]
[323305948,1713883641084,-535.77,0.00019178,2]
[323305949,1713883641105,-500.0,0.00019178,2]
[323305950,1713883641129,-500.0,0.00019178,2]
[323305951,1713883641150,-1515.48,0.00019178,2]
[323305952,1713883641170,-500.0,0.00019178,2]
[323305953,1713883641190,-500.0,0.00019178,2]
[323305954,1713883641214,-1307.17,0.00019178,2]
[323305955,1713883641233,-500.0,0.00019178,2]
[323305956,1713883641254,-693.33,0.00019178,2]
[323305957,1713883641276,-500.0,0.00019178,2]
[323305958,1713883641298,-9092.98,0.00019178,2]
[323305959,1713883641321,-1012.35,0.00019178,2]
[323305960,1713883641341,-500.0,0.00019178,2]
[323305961,1713883641361,-756.54,0.00019178,2]
[323305962,1713883641383,-678.94,0.00019178,2]
[323305963,1713883641404,-802.55,0.00019178,2]
[323305964,1713883641425,-1198.42,0.00019178,2]
[323305965,1713883641445,-500.0,0.00019178,2]
[323305966,1713883641466,-500.0,0.00019178,2]
[323305967,1713883641488,-1002.66,0.00019178,2]
[323305968,1713883641508,-500.0,0.00019178,2]
[323305969,1713883641531,-500.0,0.00019178,2]
[323305970,1713883641552,-500.0,0.00019178,2]
[323305971,1713883641572,-500.0,0.00019178,2]
[323305972,1713883641593,-1085.1,0.00019178,2]
[323305973,1713883641613,-500.0,0.00019178,2]
[323305974,1713883641633,-500.0,0.00019178,2]
[323305975,1713883641655,-650.7,0.00019178,2]
[323305976,1713883641675,-612.11,0.00019178,2]
[323305977,1713883641695,-500.0,0.00019178,2]
[323305978,1713883641716,-500.0,0.00019178,2]
[323305979,1713883641737,-1682.38,0.00019178,2]
[323305980,1713883641759,-500.0,0.00019178,2]
[323305981,1713883641780,-3741.42,0.00019178,2]
[323305982,1713883641801,-655.72,0.00019178,2]
[323305983,1713883641822,-1544.09,0.00019178,2]
[323305984,1713883641843,-1333.1,0.00019178,2]
[323305985,1713883641863,-500.0,0.00019178,2]
[323305986,1713883641884,-2735.34,0.00019178,2]
[323305987,1713883641904,-500.0,0.00019178,2]
[323305988,1713883641924,-5073.58,0.00019178,2]
[323305989,1713883641945,-12338.54,0.00019178,2]
[323305990,1713883641966,-500.0,0.00019178,2]
[323305991,1713883641985,-1327.34,0.00019178,2]
[323305992,1713883642006,-500.0,0.00019178,2]
[323305993,1713883642027,-2883.91,0.00019178,2]
[323305994,1713883642048,-567.12,0.00019178,2]
[323305995,1713883642068,-863.93,0.00019178,2]
[323305996,1713883642090,-500.0,0.00019178,2]
[323305997,1713883642110,-500.0,0.00019178,2]
[323305998,1713883642131,-9792.91,0.00019178,2]
[323305999,1713883642152,-563.81,0.00019178,2]
[323306000,1713883642172,-500.0,0.00019178,2]
[323306001,1713883642193,-772.83,0.00019178,2]
[323306002,1713883642212,-500.0,0.00019178,2]
[323306003,1713883642234,-948.24,0.00019178,2]
[323306004,1713883642254,-500.0,0.00019178,2]
[323306005,1713883642275,-500.0,0.00019178,2]
[323306006,1713883642296,-500.0,0.00019178,2]
[323306007,1713883642319,-169.6423903,0.00019352,2]
[323306008,1713883642340,-403.50571042,0.00019451,2]
[323306009,1713883642361,-197.96771572,0.00019451,2]
[323306010,1713883642383,-289.74342541,0.00019451,2]
[323306011,1713883642406,-773.44,0.00019452,2]
[323306012,1713883642426,-500.0,0.00019452,2]
[323306013,1713883642446,-500.0,0.00019452,2]
[323306014,1713883642466,-500.0,0.00019452,2]
[323306015,1713883642488,-500.0,0.00019452,2]
[323306016,1713883642509,-1620.65,0.00019452,2]
[323306017,1713883642531,-500.0,0.00019452,2]
[323306018,1713883642552,-835.58,0.00019452,2]
[323306019,1713883642572,-500.0,0.00019452,2]
[323306020,1713883642593,-580.63,0.00019452,2]
[323306021,1713883642612,-500.0,0.00019452,2]
[323306022,1713883642632,-1667.52,0.00019452,2]
[323306023,1713883642652,-500.0,0.00019452,2]
[323306024,1713883642672,-500.0,0.00019452,2]
[323306025,1713883642692,-500.0,0.00019452,2]
[323306026,1713883642712,-500.0,0.00019452,2]
[323306027,1713883642732,-500.0,0.00019452,2]
[323306028,1713883642752,-500.0,0.00019452,2]
[323306029,1713883642773,-500.0,0.00019452,2]
[323306030,1713883642793,-500.0,0.00019452,2]
[323306031,1713883642813,-500.0,0.00019452,2]
[323306032,1713883642833,-500.0,0.00019452,2]
[323306033,1713883642947,-209.94774834,0.00019452,2]
[323306034,1713883642969,-21408.63,0.00019452,2]
[323306035,1713883642990,-500.0,0.00019452,2]
[323306036,1713883643010,-500.0,0.00019452,2]
[323306037,1713883643032,-500.0,0.00019452,2]
[323306038,1713883643052,-1005.84,0.00019452,2]
[323306039,1713883643072,-943.99,0.00019452,2]
[323306040,1713883643094,-3602.7,0.00019452,2]
[323306041,1713883643114,-500.0,0.00019452,2]
[323306042,1713883643135,-3188.02,0.00019452,2]
[323306043,1713883643155,-500.0,0.00019452,2]
[323306044,1713883643176,-500.0,0.00019452,2]
[323306045,1713883643196,-500.0,0.00019452,2]
[323306046,1713883643216,-685.7,0.00019452,2]
[323306047,1713883643238,-500.0,0.00019452,2]
[323306048,1713883643259,-500.0,0.00019452,2]
[323306049,1713883643283,-500.0,0.00019452,2]
[323306050,1713883643306,-531.06,0.00019452,2]
[323306051,1713883643326,-599.02,0.00019452,2]
[323306052,1713883643363,-1731.85,0.00019452,2]
[323306053,1713883643385,-5573.13,0.00019452,2]
[323306054,1713883643408,-500.0,0.00019452,2]
[323306055,1713883643429,-500.0,0.00019452,2]
[323306056,1713883643450,-500.0,0.00019452,2]
[323306057,1713883643470,-500.0,0.00019452,2]
[323306058,1713883643491,-630.75,0.00019452,2]
[323306059,1713883643511,-5360.81,0.00019452,2]
[323306060,1713883643533,-500.0,0.00019452,2]
[323306061,1713883643554,-500.0,0.00019452,2]
[323306062,1713883643575,-500.0,0.00019452,2]
[323306063,1713883643595,-535.77,0.00019452,2]
[323306064,1713883643614,-1515.48,0.00019452,2]
[323306065,1713883643635,-500.0,0.00019452,2]
[323306066,1713883643657,-500.0,0.00019452,2]
[323306067,1713883643678,-1307.17,0.00019452,2]
[323306068,1713883643697,-500.0,0.00019452,2]
[323306069,1713883643719,-693.33,0.00019452,2]
[323306070,1713883643740,-500.0,0.00019452,2]
[323306071,1713883643762,-9092.98,0.00019452,2]
[323306072,1713883643784,-1012.35,0.00019452,2]
[323306073,1713883643804,-509.9324264,0.00019452,2]
[323306074,1713883643826,-756.54,0.00019452,2]
[323306075,1713883643849,-678.94,0.00019452,2]
[323306076,1713883643870,-802.55,0.00019452,2]
[323306077,1713883643890,-1198.42,0.00019452,2]
[323306078,1713883643910,-500.0,0.00019452,2]
[323306079,1713883643931,-500.0,0.00019452,2]
[323306080,1713883643952,-1002.66,0.00019452,2]
[323306081,1713883643972,-500.0,0.00019452,2]
[323306082,1713883643992,-500.0,0.00019452,2]
[323306083,1713883644013,-500.0,0.00019452,2]
[323306084,1713883644035,-1085.1,0.00019452,2]
[323306085,1713883644055,-500.0,0.00019452,2]
[323306086,1713883644075,-500.0,0.00019452,2]
[323306087,1713883644096,-650.7,0.00019452,2]
[323306088,1713883644117,-612.11,0.00019452,2]
[323306089,1713883644138,-500.0,0.00019452,2]
[323306090,1713883644159,-500.0,0.00019452,2]
[323306091,1713883644180,-1682.38,0.00019452,2]
[323306092,1713883644201,-500.0,0.00019452,2]
[323306093,1713883644224,-3741.42,0.00019452,2]
[323306094,1713883644249,-655.72,0.00019452,2]
[323306095,1713883644281,-1544.09,0.00019452,2]
[323306096,1713883644312,-1333.1,0.00019452,2]
[323306097,1713883644334,-2735.34,0.00019452,2]
[323306098,1713883644355,-500.0,0.00019452,2]
[323306099,1713883644376,-5073.58,0.00019452,2]
[323306100,1713883644398,-12338.54,0.00019452,2]
[323306101,1713883644418,-500.0,0.00019452,2]
[323306102,1713883644438,-500.0,0.00019452,2]
[323306103,1713883644459,-1327.34,0.00019452,2]
[323306104,1713883644480,-2883.91,0.00019452,2]
[323306105,1713883644501,-567.12,0.00019452,2]
[323306106,1713883644527,-863.93,0.00019452,2]
[323306107,1713883644548,-598.90667518,0.00019452,2]
[323306108,1713883644569,-500.0,0.00019452,2]
[323306109,1713883644590,-9792.91,0.00019452,2]
[323306110,1713883644611,-563.81,0.00019452,2]
[323306111,1713883644632,-500.0,0.00019452,2]
[323306112,1713883644652,-772.83,0.00019452,2]
[323306113,1713883644672,-948.24,0.00019452,2]
[323306114,1713883644692,-500.0,0.00019452,2]
[323306115,1713883644712,-500.0,0.00019452,2]
[323306116,1713883644732,-500.0,0.00019452,2]
[323306117,1713883644752,-169.64239029,0.00019626,2]
[323306118,1713883644774,-500.0,0.00019726,2]
[323306119,1713883644794,-2188.86,0.00019726,2]
[323306120,1713883644813,-500.0,0.00019726,2]
[323306121,1713883644833,-500.0,0.00019726,2]
[323306122,1713883644854,-517.54824098,0.00019726,2]
[323306123,1713883644874,-500.0,0.00019726,2]
[323306124,1713883644894,-500.0,0.00019726,2]
[323306125,1713883644914,-500.0,0.00019726,2]
[323306126,1713883644933,-500.0,0.00019726,2]
[323306127,1713883645047,-505.17939538,0.00019726,2]
[323306128,1713883645069,-500.0,0.00019726,2]
[323306129,1713883645091,-151.0,0.00019726,2]
[323306130,1713883645111,-500.0,0.00019726,2]
[323306131,1713883645133,-500.0,0.00019726,2]
[323306132,1713883645153,-500.0,0.00019726,2]
[323306133,1713883645173,-500.0,0.00019726,2]
[323306134,1713883645192,-500.0,0.00019726,2]
[323306135,1713883645212,-500.0,0.00019726,2]
[323306136,1713883645233,-500.0,0.00019726,2]
[323306137,1713883645253,-1320.99,0.00019726,2]
[323306138,1713883645277,-1097.94,0.00019726,2]
[323306139,1713883645298,-673.0,0.00019726,2]
[323306140,1713883645320,-151.0,0.00019726,2]
[323306141,1713883645340,-151.0,0.00019726,2]
[323306142,1713883645362,-500.0,0.00019726,2]